bitfinex/quotes_BTCUSD_20240827
["timestamp","ask_amount","ask_price","bid_price","bid_amount"]
[1724734045064,0.02563366,63194.0,63193.0,1.51861619]
[1724734045824,0.02563366,63194.0,63193.0,1.51661619]
[1724734045978,0.02663366,63194.0,63193.0,1.52561619]
[1724734047798,0.02663366,63194.0,63193.0,1.54861619]
[1724734048897,0.02563366,63194.0,63193.0,1.52561619]
[1724734049095,0.02563366,63194.0,63193.0,1.53961619]
[1724734049316,0.02563366,63194.0,63193.0,1.55361619]
[1724734049680,0.02563366,63194.0,63193.0,1.53961619]
[1724734049871,0.02563366,63194.0,63193.0,1.55361619]
[1724734050284,0.02563366,63194.0,63193.0,1.87010619]
[1724734050548,0.02563366,63194.0,63193.0,1.87110619]
[1724734050946,0.02563366,63194.0,63193.0,1.85710619]
[1724734051286,0.02563366,63194.0,63193.0,1.87110619]
[1724734051486,0.02563366,63194.0,63193.0,1.85710619]
[1724734051952,0.02563366,63194.0,63193.0,1.97110619]
[1724734052299,0.02563366,63194.0,63193.0,1.95710619]
[1724734052514,0.000824,63194.0,63193.0,1.95710619]
[1724734052714,0.000824,63194.0,63193.0,1.97110619]
[1724734053278,0.000824,63194.0,63193.0,1.95710619]
[1724734053646,0.000824,63194.0,63193.0,1.97110619]
[1724734055577,0.000824,63194.0,63193.0,2.28759619]
[1724734057009,0.000824,63194.0,63193.0,2.2994373]
[1724734058064,0.000824,63194.0,63193.0,2.28759619]
[1724734060278,0.00824,63208.0,63207.0,1.18347]
[1724734060480,0.00824,63208.0,63207.0,1.61366479]
[1724734061521,0.00824,63208.0,63207.0,1.62766479]
[1724734062143,0.00824,63208.0,63207.0,1.63014555]
[1724734062268,0.00824,63208.0,63207.0,1.64414555]
[1724734062465,0.00824,63208.0,63207.0,1.63614555]
[1724734062690,0.00824,63208.0,63207.0,1.65014555]
[1724734063334,0.00824,63208.0,63207.0,1.63614555]
[1724734063529,0.00824,63208.0,63207.0,1.65014555]
[1724734063775,0.00824,63208.0,63207.0,1.63614555]
[1724734064219,0.00824,63208.0,63207.0,1.65014555]
[1724734064465,0.00824,63208.0,63207.0,1.63614555]
[1724734064686,0.00824,63208.0,63207.0,1.65014555]
[1724734073032,0.00824,63208.0,63207.0,2.15014555]
[1724734085335,0.00824,63208.0,63207.0,2.46656555]
[1724734085559,0.00824,63208.0,63207.0,2.15014555]
[1724734086031,0.00824,63208.0,63207.0,2.46656555]
[1724734086272,0.00824,63208.0,63207.0,2.47839984]
[1724734086687,0.00824,63208.0,63207.0,2.47939984]
[1724734087345,0.00824,63208.0,63207.0,2.46539984]
[1724734087557,0.00824,63208.0,63207.0,2.47939984]
[1724734087995,0.00824,63208.0,63207.0,2.46539984]
[1724734088162,0.00824,63208.0,63207.0,2.45139984]
[1724734088636,0.00824,63208.0,63207.0,2.46756555]
[1724734088840,0.00824,63208.0,63207.0,2.47939877]
[1724734088988,0.00824,63208.0,63207.0,2.46539877]
[1724734089310,0.00824,63208.0,63207.0,2.47939877]
[1724734092145,0.00824,63208.0,63207.0,2.45139642]
[1724734092391,0.00824,63208.0,63207.0,2.46539642]
[1724734092582,0.00824,63208.0,63207.0,2.45139642]
[1724734094204,0.00824,63208.0,63207.0,2.47939642]
[1724734094868,0.00824,63208.0,63207.0,2.31337964]
[1724734095135,0.00824,63208.0,63207.0,1.98894555]
[1724734095769,0.00824,63208.0,63207.0,1.96094555]
[1724734096230,0.00824,63208.0,63207.0,1.97494555]
[1724734096442,0.00824,63208.0,63207.0,1.99794555]
[1724734097690,0.00824,63208.0,63207.0,2.01194555]
[1724734101032,0.15284,63208.0,63207.0,2.01194555]
[1724734103440,0.08874,63208.0,63207.0,2.01194555]
[1724734103692,0.00824,63208.0,63207.0,2.01194555]
[1724734103951,0.00824,63208.0,63207.0,2.15724555]
[1724734105886,0.00824,63208.0,63207.0,2.47366555]
[1724734106415,0.00824,63208.0,63207.0,2.48549707]
[1724734107510,0.00824,63208.0,63207.0,2.48549695]
[1724734110922,0.00824,63208.0,63207.0,2.48549576]
[1724734111279,0.00824,63208.0,63207.0,2.47366555]
[1724734111481,0.00824,63208.0,63207.0,2.48549576]
[1724734118193,0.00824,63208.0,63207.0,2.48549544]
[1724734118405,0.00824,63208.0,63207.0,2.48649544]
[1724734120602,0.00824,63208.0,63207.0,2.50128239]
[1724734121890,0.00824,63208.0,63207.0,2.50128134]
[1724734122096,0.00824,63208.0,63207.0,2.47466555]
[1724734122294,0.00824,63208.0,63207.0,2.48649426]
[1724734122594,0.00824,63208.0,63207.0,2.50128015]
[1724734123639,0.00824,63208.0,63207.0,2.24316337]
[1724734123843,0.00824,63208.0,63207.0,2.30536555]
[1724734125082,0.00824,63208.0,63207.0,2.32836555]
[1724734125303,0.00824,63208.0,63207.0,2.41106555]
[1724734125711,0.00824,63208.0,63207.0,2.47356555]
[1724734126138,0.00824,63208.0,63207.0,2.47456555]
[1724734130453,0.00824,63208.0,63207.0,2.48935259]
[1724734130964,0.00824,63208.0,63207.0,2.48935197]
[1724734131115,0.00824,63208.0,63207.0,2.48935199]
[1724734131319,0.00824,63208.0,63207.0,2.47456555]
[1724734131519,0.00824,63208.0,63207.0,2.48935265]
[1724734135473,0.00824,63208.0,63207.0,2.47456555]
[1724734135803,0.00824,63208.0,63207.0,2.48935233]
[1724734138470,0.00824,63208.0,63207.0,2.47456555]
[1724734138673,0.00824,63208.0,63207.0,2.4893571]
[1724734139489,0.00824,63208.0,63207.0,2.3441571]
[1724734139658,0.00824,63208.0,63207.0,2.3431571]
[1724734139865,0.00824,63208.0,63207.0,2.3441571]
[1724734141064,0.00824,63208.0,63207.0,2.32936555]
[1724734141263,0.00824,63208.0,63207.0,2.34415944]
[1724734143176,0.00824,63208.0,63207.0,2.40625944]
[1724734144172,0.00824,63208.0,63207.0,2.39146555]
[1724734144381,0.00824,63208.0,63207.0,2.40625889]
[1724734144780,0.00824,63208.0,63207.0,2.48265889]
[1724734146333,0.00824,63208.0,63207.0,2.79907889]
[1724734149832,0.00824,63208.0,63207.0,2.48265889]
[1724734150514,0.00824,63208.0,63207.0,2.48265953]
[1724734150715,0.00824,63208.0,63207.0,2.79907953]
[1724734151118,0.00824,63208.0,63207.0,2.78428555]
[1724734151440,0.00824,63208.0,63207.0,2.79907937]
[1724734151798,0.00824,63208.0,63207.0,2.48265937]
[1724734157123,0.00824,63208.0,63207.0,2.46786555]
[1724734157259,0.00824,63208.0,63207.0,2.48265934]
[1724734160270,0.00824,63208.0,63207.0,2.78428555]
[1724734160745,0.00824,63208.0,63207.0,2.79907893]
[1724734162401,0.00824,63208.0,63207.0,2.82274779]
[1724734162609,0.00824,63208.0,63207.0,2.50632779]
[1724734163351,0.00824,63208.0,63207.0,2.48265893]
[1724734164375,0.00824,63208.0,63207.0,2.15534215]
[1724734164578,0.08854,63208.0,63207.0,2.20536555]
[1724734165003,0.08854,63208.0,63207.0,1.88894555]
[1724734165379,0.08854,63208.0,63207.0,1.80012877]
[1724734165631,0.08854,63208.0,63207.0,1.88894555]
[1724734166421,0.08854,63208.0,63207.0,2.01194555]
[1724734166620,0.15004,63208.0,63207.0,0.68621]
[1724734166820,0.15004,63208.0,63207.0,0.528]
[1724734166821,0.19754322,63208.0,63207.0,0.528]
[1724734167016,0.24504644,63208.0,63207.0,0.528]
[1724734167220,0.44388698,63208.0,63207.0,0.528]
[1724734167458,0.42008512,63208.0,63207.0,0.528]
[1724734167755,0.44158629,63208.0,63207.0,0.528]
[1724734168194,0.4415858,63208.0,63207.0,0.528]
[1724734168579,0.44022511,63208.0,63207.0,0.528]
[1724734168750,0.24602771,63208.0,63207.0,0.514]
[1724734168949,0.34586838,63208.0,63207.0,0.514]
[1724734169139,0.44082408,63208.0,63207.0,0.514]
[1724734169337,0.44082408,63208.0,63207.0,0.5]
[1724734169536,0.44082408,63208.0,63207.0,0.514]
[1724734169537,0.17483888,63208.0,63207.0,0.514]
[1724734169741,0.17483888,63208.0,63207.0,0.527]
[1724734169942,0.17483888,63208.0,63207.0,0.513]
[1724734170166,0.17483888,63208.0,63207.0,0.67121]
[1724734170367,0.17483888,63208.0,63207.0,0.66521]
[1724734170570,0.24598466,63208.0,63207.0,0.66521]
[1724734170792,0.24598466,63208.0,63207.0,0.67921]
[1724734170987,0.24598466,63208.0,63207.0,0.67221]
[1724734171620,0.17483888,63208.0,63207.0,0.67221]
[1724734172176,0.17483888,63208.0,63207.0,0.65821]
[1724734172388,0.17483888,63208.0,63207.0,0.98763]
[1724734172589,0.15004,63208.0,63207.0,0.98763]
[1724734172792,0.15004,63208.0,63207.0,0.98163]
[1724734173023,0.15004,63208.0,63207.0,0.99463]
[1724734173220,0.15004,63208.0,63207.0,0.98763]
[1724734173597,0.15004,63208.0,63207.0,0.99463]
[1724734173799,0.15004,63208.0,63207.0,0.98163]
[1724734173984,0.00824,63208.0,63207.0,1.38686678]
[1724734175266,0.00824,63208.0,63207.0,1.71628678]
[1724734175869,0.00824,63208.0,63207.0,1.70928678]
[1724734176080,0.00824,63208.0,63207.0,1.70428678]
[1724734176531,0.00824,63208.0,63207.0,1.71728678]
[1724734177128,0.00824,63208.0,63207.0,1.69628678]
[1724734177363,0.00824,63208.0,63207.0,1.70528678]
[1724734178820,0.00824,63208.0,63207.0,1.71028678]
[1724734179023,0.00824,63208.0,63207.0,1.69628678]
[1724734179203,0.00824,63208.0,63207.0,1.70928678]
[1724734179391,0.00824,63208.0,63207.0,1.72328678]
[1724734179592,0.00824,63208.0,63207.0,1.71028678]
[1724734179843,0.00824,63208.0,63207.0,1.86646479]
[1724734180019,0.00824,63208.0,63207.0,1.88046479]
[1724734214634,0.00824,63208.0,63207.0,1.95716479]
[1724734223172,0.00824,63208.0,63207.0,2.02106479]
[1724734223783,0.00824,63208.0,63207.0,2.33748479]
[1724734224035,0.00824,63208.0,63207.0,2.36048479]
[1724734230654,0.00824,63208.0,63207.0,1.93224801]
[1724734230855,0.00824,63208.0,63207.0,1.88046479]
[1724734243384,0.00824,63208.0,63207.0,1.88846479]
[1724734245973,0.00824,63208.0,63207.0,1.32705]
[1724734245974,0.05892564,63208.0,63207.0,1.32705]
[1724734246185,0.20252564,63208.0,63207.0,1.32705]
[1724734246381,0.15184,63208.0,63207.0,1.32705]
[1724734248103,0.15184,63208.0,63207.0,1.41586678]
[1724734249283,0.15184,63208.0,63207.0,1.09944678]
[1724734250295,0.22309029,63208.0,63207.0,1.09944678]
[1724734250505,0.15184,63208.0,63207.0,0.536]
[1724734250664,0.31642687,63208.0,63207.0,0.536]
[1724734251750,0.31642687,63208.0,63207.0,0.522]
[1724734251949,0.31642687,63208.0,63207.0,0.532]
[1724734252606,0.31642687,63208.0,63207.0,0.67621]
[1724734252831,0.31642687,63208.0,63207.0,0.68421]
[1724734253247,0.17282687,63208.0,63207.0,1.00063]
[1724734253467,0.17282687,63208.0,63207.0,0.67621]
[1724734253665,0.17282687,63208.0,63207.0,0.68021]
[1724734254087,0.17282687,63208.0,63207.0,0.67021]
[1724734254288,0.12690356,63208.0,63207.0,0.67721]
[1724734254492,0.12690356,63208.0,63207.0,0.99863]
[1724734254712,0.29149043,63208.0,63207.0,0.68221]
[1724734254932,0.00824,63208.0,63207.0,0.77102678]
[1724734255133,0.00824,63208.0,63207.0,1.08744678]
[1724734255559,0.00824,63208.0,63207.0,0.77102678]
[1724734256059,0.00824,63208.0,63207.0,0.68221]
[1724734256885,0.00824,63208.0,63207.0,0.99863]
[1724734257513,0.00824,63208.0,63207.0,0.68221]
[1724734257717,0.00824,63208.0,63207.0,0.99863]
[1724734257929,0.00824,63208.0,63207.0,1.54746678]
[1724734258312,0.00824,63208.0,63207.0,1.86388678]
[1724734260103,0.00824,63208.0,63207.0,1.85588678]
[1724734273219,0.00824,63208.0,63207.0,1.76707]
[1724734273421,0.00824,63208.0,63207.0,1.70337]
[1724734279762,0.00824,63208.0,63207.0,1.62347]
[1724734280160,0.00824,63208.0,63207.0,1.30705]
[1724734280344,0.05571364,63208.0,63207.0,1.30705]
[1724734283003,0.00824,63208.0,63207.0,1.30705]
[1724734283206,0.00824,63208.0,63207.0,0.67421]
[1724734283379,0.17828729,63208.0,63207.0,0.67421]
[1724734283581,0.34413511,63208.0,63207.0,0.67421]
[1724734284055,0.34413511,63208.0,63207.0,0.516]
[1724734284056,0.78530069,63208.0,63207.0,0.516]
[1724734284229,1.10171569,63208.0,63207.0,0.516]
[1724734284728,1.32944757,63208.0,63207.0,0.516]
[1724734284932,1.32944757,63208.0,63207.0,0.511]
[1724734285084,1.32944757,63208.0,63207.0,0.5]
[1724734285285,1.10171569,63208.0,63207.0,0.503]
[1724734285491,1.25784737,63208.0,63207.0,0.503]
[1724734285829,1.48557925,63208.0,63207.0,0.512]
[1724734287462,1.39700215,63208.0,63207.0,0.512]
[1724734287676,0.78212517,63208.0,63207.0,0.512]
[1724734288978,1.09854017,63208.0,63207.0,0.512]
[1724734289420,0.78212517,63208.0,63207.0,0.512]
[1724734290147,0.40421017,63208.0,63207.0,0.512]
[1724734292893,0.24600317,63208.0,63207.0,0.512]
[1724734293096,0.40421017,63208.0,63207.0,0.512]
[1724734293737,0.39887262,63208.0,63207.0,0.512]
[1724734298498,0.39878388,63208.0,63207.0,0.512]
[1724734300192,0.32368388,63208.0,63207.0,0.512]
[1724734300394,0.28400248,63208.0,63207.0,0.6523]
[1724734300557,0.26029446,63208.0,63207.0,0.6523]
[1724734300926,0.16547688,63208.0,63207.0,0.6523]
[1724734301284,0.16547688,63208.0,63207.0,0.81051]
[1724734302452,0.16547688,63208.0,63207.0,1.12693]
[1724734303353,0.00824,63208.0,63207.0,1.12693]
[1724734303713,0.16717411,63208.0,63207.0,1.12693]
[1724734304268,0.16717197,63208.0,63207.0,1.12693]
[1724734305078,0.16717197,63208.0,63207.0,0.81051]
[1724734307602,0.26198388,63208.0,63207.0,0.81051]
[1724734309908,0.26198388,63208.0,63207.0,0.512]
[1724734310223,0.2651594,63208.0,63207.0,0.67021]
[1724734312651,0.2651594,63208.0,63207.0,0.98663]
[1724734312652,0.26198388,63208.0,63207.0,0.98663]
[1724734313001,0.26198388,63208.0,63207.0,1.12693]
[1724734313208,0.26198388,63208.0,63207.0,0.81051]
[1724734314543,0.26198388,63208.0,63207.0,1.12693]
[1724734314970,0.26198388,63208.0,63207.0,1.44335]
[1724734315202,0.26198388,63208.0,63207.0,1.12693]
[1724734316421,0.16717197,63208.0,63207.0,1.12693]
[1724734316628,0.26198388,63208.0,63207.0,1.12693]
[1724734316988,0.26198388,63208.0,63207.0,0.81051]
[1724734318059,0.26307186,63208.0,63207.0,0.81051]
[1724734320653,0.16818011,63208.0,63207.0,0.81051]
[1724734320856,0.16818011,63208.0,63207.0,1.12693]
[1724734322588,0.2867948,63208.0,63207.0,1.12693]
[1724734323944,0.2867948,63208.0,63207.0,0.98663]
[1724734324151,0.16818011,63208.0,63207.0,0.512]
[1724734324501,0.32638711,63208.0,63207.0,0.512]
[1724734325969,0.16818011,63208.0,63207.0,0.512]
[1724734326369,0.16818011,63208.0,63207.0,0.67021]
[1724734329318,0.16818011,63208.0,63207.0,0.512]
[1724734331118,0.00824,63208.0,63207.0,0.512]
[1724734331652,0.32603345,63208.0,63207.0,0.512]
[1724734333264,0.71954845,63208.0,63207.0,0.512]
[1724734333467,1.15634527,63208.0,63207.0,0.512]
[1724734334036,1.15634527,63208.0,63207.0,0.28194908]
[1724734334037,3.16127906,63208.0,63207.0,0.28194908]
[1724734334248,2.17111906,63208.0,63207.0,0.28194908]
[1724734334889,2.17111906,63208.0,63207.0,0.26994908]
[1724734335095,2.17411906,63208.0,63207.0,0.26994908]
[1724734335306,2.17711906,63208.0,63207.0,0.26994908]
[1724734335509,2.33434574,63208.0,63207.0,0.26994908]
[1724734335709,1.73332224,63208.0,63207.0,0.26994908]
[1724734336148,1.73632224,63208.0,63207.0,0.27094908]
[1724734336550,1.73332224,63208.0,63207.0,0.26994908]
[1724734336951,1.74132224,63208.0,63207.0,0.27094908]
[1724734337173,1.74132224,63208.0,63207.0,0.26994908]
[1724734337309,0.65044845,63208.0,63207.0,0.26994908]
[1724734337511,0.97186345,63208.0,63207.0,0.26994908]
[1724734338286,0.95886345,63208.0,63207.0,0.26994908]
[1724734338481,0.96386345,63208.0,63207.0,0.27094908]
[1724734338725,0.96586345,63208.0,63207.0,0.27094908]
[1724734338930,0.96086345,63208.0,63207.0,0.26994908]
[1724734339310,0.96886345,63208.0,63207.0,0.27094908]
[1724734342086,1.16005708,63208.0,63207.0,0.27094908]
[1724734343214,1.16005708,63208.0,63207.0,0.27185548]
[1724734343820,1.47647208,63208.0,63207.0,0.27185548]
[1724734344043,1.70671327,63208.0,63207.0,0.27185548]
[1724734344258,2.18672827,63208.0,63207.0,0.27185548]
[1724734345369,2.17718245,63208.0,63207.0,0.27185548]
[1724734345567,2.20018245,63208.0,63207.0,0.27185548]
[1724734345795,3.37282745,63208.0,63207.0,0.08982553]
[1724734346774,3.21723516,63208.0,63207.0,0.08982553]
[1724734347003,4.97976416,63208.0,63207.0,0.08982553]
[1724734347964,4.81296416,63208.0,63207.0,0.08982553]
[1724734348557,4.97986416,63208.0,63207.0,0.08982553]
[1724734350993,4.98372956,63208.0,63207.0,0.08982553]
[1724734351382,5.14359077,63208.0,63207.0,0.08982553]
[1724734351989,4.98372956,63208.0,63207.0,0.04065052]
[1724734352791,5.30014456,63208.0,63207.0,0.00011621]
[1724734352991,5.31669724,63208.0,63207.0,0.00011621]
[1724734353190,5.4764773,63208.0,63207.0,0.00011621]
[1724734353402,5.47647856,63208.0,63207.0,0.00011621]
[1724734353770,5.47447856,63208.0,63207.0,0.00011621]
[1724734353985,5.46647856,63208.0,63207.0,0.00011621]
[1724734354184,5.48747856,63208.0,63207.0,0.00211621]
[1724734354790,5.32769724,63208.0,63207.0,0.00211621]
[1724734355188,5.41651402,63208.0,63207.0,0.00211621]
[1724734355363,4.94762202,63208.0,63207.0,0.00211621]
[1724734355564,4.63120702,63208.0,63207.0,0.00211621]
[1724734355759,2.32460634,63208.0,63207.0,0.00211621]
[1724734355968,2.28500402,63208.0,63207.0,0.00211621]
[1724734356871,2.60141902,63208.0,63207.0,0.00211621]
[1724734357605,4.46345002,63208.0,63207.0,0.00211621]
[1724734358734,4.11525002,63208.0,63207.0,0.00211621]
[1724734358931,4.0342596,63208.0,63207.0,0.00211621]
[1724734359509,4.00451193,63208.0,63207.0,0.00211621]
[1724734360350,4.00451193,63208.0,63194.0,0.0009064]
[1724734360351,1.45516,63195.0,63194.0,0.0009064]
[1724734360549,1.51397678,63195.0,63194.0,0.0009064]
[1724734360952,1.61784218,63195.0,63194.0,0.0009064]
[1724734361153,1.76090487,63195.0,63194.0,0.0009064]
[1724734361361,1.64265391,63195.0,63194.0,0.0009064]
[1724734361678,2.7769198,63195.0,63194.0,0.0019064]
[1724734362245,2.67598091,63195.0,63194.0,0.0019064]
[1724734362867,2.81789812,63195.0,63194.0,0.0019064]
[1724734364029,2.95120587,63195.0,63194.0,0.0019064]
[1724734364729,2.80928866,63195.0,63194.0,0.0019064]
[1724734364943,2.95115314,63195.0,63194.0,0.0019064]
[1724734365194,3.10728482,63195.0,63194.0,0.0019064]
[1724734365554,2.96542034,63195.0,63194.0,0.0019064]
[1724734365753,3.10728923,63195.0,63194.0,0.0019064]
[1724734367772,2.96542034,63195.0,63194.0,0.0019064]
[1724734368449,3.19384234,63195.0,63194.0,0.0019064]
[1724734369103,2.91243534,63195.0,63194.0,0.0019064]
[1724734369683,2.54107134,63195.0,63194.0,0.0019064]
[1724734369898,2.19820134,63195.0,63194.0,0.0019064]
[1724734371404,0.40002513,63195.0,63194.0,0.61356739]
[1724734371617,0.03467713,63195.0,63194.0,0.1448064]
[1724734371849,0.0098654,63195.0,63194.0,0.1448064]
[1724734372026,0.4845854,63195.0,63194.0,0.1448064]
[1724734372396,0.1681054,63195.0,63194.0,0.1448064]
[1724734373147,0.1631054,63195.0,63194.0,0.1518064]
[1724734373345,0.1621054,63195.0,63194.0,0.1438064]
[1724734373534,0.1621054,63195.0,63194.0,0.1478064]
[1724734373728,0.1621054,63195.0,63194.0,0.1518064]
[1724734373981,0.1621054,63195.0,63194.0,0.1478064]
[1724734374497,0.1651054,63195.0,63194.0,0.1478064]
[1724734374910,0.1621054,63195.0,63194.0,0.1478064]
[1724734375438,0.0038654,63195.0,63194.0,0.1478064]
[1724734375737,0.0038654,63195.0,63194.0,0.1438064]
[1724734376162,0.0048654,63195.0,63194.0,0.1508064]
[1724734376966,0.0038654,63195.0,63194.0,0.1438064]
[1724734377164,0.0048654,63195.0,63194.0,0.1498064]
[1724734377383,0.0048654,63195.0,63194.0,0.1438064]
[1724734377757,0.05320711,63195.0,63194.0,0.1498064]
[1724734378169,0.07687797,63195.0,63194.0,0.1498064]
[1724734378632,0.0058654,63195.0,63194.0,0.1498064]
[1724734379004,0.0038654,63195.0,63194.0,0.1438064]
[1724734379208,0.05121783,63195.0,63194.0,0.1438064]
[1724734379456,0.0048654,63195.0,63194.0,0.3090484]
[1724734379599,0.0048654,63195.0,63194.0,0.3020484]
[1724734380057,0.0058654,63195.0,63194.0,0.9420184]
[1724734380253,0.0038654,63195.0,63194.0,0.9350184]
[1724734380680,0.0048654,63195.0,63194.0,0.9420184]
[1724734381083,0.0038654,63195.0,63194.0,0.9350184]
[1724734381343,0.0038654,63195.0,63194.0,0.6185334]
[1724734382164,0.0038654,63195.0,63194.0,0.6235334]
[1724734382595,0.0048654,63195.0,63194.0,0.6305334]
[1724734383007,0.0038654,63195.0,63194.0,0.6235334]
[1724734383213,0.0048654,63195.0,63194.0,0.6305334]
[1724734384324,0.05221783,63195.0,63194.0,0.6305334]
[1724734384549,0.05223813,63195.0,63194.0,0.6305334]
[1724734385609,0.05223813,63195.0,63194.0,0.3140484]
[1724734385822,0.00804092,63195.0,63194.0,0.1558064]
[1724734386236,0.23734002,63195.0,63194.0,0.1558064]
[1724734387528,0.16628092,63195.0,63194.0,0.1558064]
[1724734387960,0.00804092,63195.0,63194.0,0.1558064]
[1724734388386,0.09961087,63195.0,63194.0,0.1558064]
[1724734389808,0.0711268,63196.0,63194.0,1.54771092]
[1724734390010,0.02480665,63199.0,63198.0,0.474697]
[1724734390212,0.02480665,63199.0,63198.0,1.251527]
[1724734390412,0.000824,63207.0,63198.0,0.316465]
[1724734390612,0.000824,63207.0,63203.0,0.316438]
[1724734390813,0.000824,63207.0,63205.0,0.0808]
[1724734390976,0.000824,63207.0,63206.0,0.158212]
[1724734391806,0.001824,63207.0,63206.0,0.474637]
[1724734393387,0.001824,63207.0,63206.0,0.488637]
[1724734393718,0.001824,63207.0,63206.0,0.497637]
[1724734393920,0.001824,63207.0,63206.0,0.67482236]
[1724734396287,0.001824,63207.0,63206.0,0.959062]
[1724734402974,0.001824,63207.0,63206.0,0.168]
[1724734405848,0.001824,63207.0,63206.0,0.326212]
[1724734406055,0.001824,63207.0,63206.0,0.79881501]
[1724734407046,0.000824,63207.0,63206.0,0.78481501]
[1724734407260,0.02562365,63207.0,63206.0,0.77581501]
[1724734407458,0.001824,63207.0,63206.0,0.89498884]
[1724734407664,0.002824,63207.0,63206.0,0.90898884]
[1724734407868,0.000824,63207.0,63206.0,0.88598884]
[1724734408277,0.002824,63207.0,63206.0,0.91398884]
[1724734410234,0.02762355,63207.0,63206.0,0.91398884]
[1724734412884,0.00263358,63207.0,63206.0,0.91398884]
[1724734415287,0.00263358,63207.0,63206.0,1.23041384]
[1724734416047,0.02743299,63207.0,63206.0,1.23041384]
[1724734417266,0.02743299,63207.0,63206.0,1.23132024]
[1724734417528,0.02743299,63207.0,63206.0,0.44229223]
[1724734417838,0.02743299,63207.0,63206.0,0.1107064]
[1724734419389,0.02643299,63207.0,63206.0,0.0149064]
[1724734420583,0.02643299,63207.0,63206.0,0.0209064]
[1724734420824,0.02543299,63207.0,63206.0,0.0069064]
[1724734421063,0.02543299,63207.0,63206.0,0.0009064]
[1724734421297,0.02543299,63207.0,63206.0,0.0159064]
[1724734421790,0.02543299,63207.0,63206.0,0.0039064]
[1724734422280,0.02543299,63207.0,63206.0,0.0129064]
[1724734424317,0.07273655,63207.0,63206.0,0.0129064]
[1724734428306,0.02543299,63207.0,63206.0,0.0129064]
[1724734429060,0.09638834,63207.0,63206.0,0.0129064]
[1724734429507,0.09638834,63207.0,63206.0,0.1711184]
[1724734429709,0.09638834,63207.0,63206.0,0.0129064]
[1724734431223,0.02543299,63207.0,63206.0,0.0129064]
[1724734432410,0.12023866,63207.0,63206.0,0.0129064]
[1724734434370,0.02543299,63207.0,63206.0,0.0129064]
[1724734435198,0.14394007,63207.0,63206.0,0.0129064]
[1724734441692,0.14403866,63207.0,63206.0,0.0129064]
[1724734444747,0.93826418,63207.0,63206.0,0.0129064]
[1724734444954,0.88305851,63207.0,63206.0,0.0129064]
[1724734445186,1.22128719,63207.0,63206.0,0.0129064]
[1724734445537,1.16139939,63207.0,63206.0,0.0129064]
[1724734446010,1.47781939,63207.0,63206.0,0.0129064]
[1724734446210,1.4963368,63207.0,63206.0,0.0129064]
[1724734446938,1.4963368,63207.0,63206.0,0.0039064]
[1724734447391,1.4963368,63207.0,63206.0,0.0009064]
[1724734447563,1.65746848,63207.0,63206.0,0.0009064]
[1724734447849,1.65946848,63207.0,63206.0,0.0009064]
[1724734448208,1.65246848,63207.0,63206.0,0.0009064]
[1724734448407,1.4983368,63207.0,63206.0,0.0009064]
[1724734448634,1.4963368,63207.0,63206.0,0.0009064]
[1724734449014,1.4983368,63207.0,63206.0,0.0009064]
[1724734449451,1.5053368,63207.0,63206.0,0.0019064]
[1724734450250,1.5033368,63207.0,63206.0,0.0019064]
[1724734450676,1.5053368,63207.0,63206.0,0.0019064]
[1724734451011,1.30917851,63207.0,63206.0,0.0019064]
[1724734451215,1.50280632,63207.0,63206.0,0.0019064]
[1724734455922,1.50271146,63207.0,63206.0,0.0019064]
[1724734460918,1.50271509,63207.0,63206.0,0.0019064]
[1724734462160,1.66275484,63207.0,63206.0,0.0019064]
[1724734462406,1.66375484,63207.0,63206.0,0.0019064]
[1724734462605,1.50371509,63207.0,63206.0,0.0019064]
[1724734463279,1.66375484,63207.0,63206.0,0.0019064]
[1724734464501,2.78314677,63207.0,63206.0,0.0019064]
[1724734464703,2.62701509,63207.0,63206.0,0.0019064]
[1724734465626,2.90924077,63207.0,63206.0,0.0019064]
[1724734466657,3.22566077,63207.0,63206.0,0.0019064]
[1724734467906,5.07977235,63207.0,63206.0,0.0019064]
[1724734468118,5.06202235,63207.0,63206.0,0.0019064]
[1724734468320,5.21815403,63207.0,63206.0,0.0019064]
[1724734468525,5.05715403,63207.0,63206.0,0.0019064]
[1724734468852,4.12234103,63207.0,63206.0,0.0019064]
[1724734469055,3.08466703,63207.0,63206.0,0.0019064]
[1724734469484,2.81062603,63207.0,63206.0,0.0019064]
[1724734469690,1.43104277,63207.0,63206.0,0.0019064]
[1724734469893,1.51980338,63207.0,63206.0,0.0019064]
[1724734471054,1.54280338,63207.0,63206.0,0.0019064]
[1724734473132,1.13762277,63207.0,63206.0,0.0019064]
[1724734473304,1.20338338,63207.0,63206.0,0.0019064]
[1724734475398,1.20972936,63207.0,63206.0,0.0019064]
[1724734481313,1.4139754,63207.0,63206.0,0.0019064]
[1724734481530,1.45879328,63207.0,63206.0,0.0019064]
[1724734481686,1.77521328,63207.0,63206.0,0.0019064]
[1724734483259,1.61514936,63207.0,63206.0,0.0019064]
[1724734484771,1.54914936,63207.0,63206.0,0.0796064]
[1724734484953,1.23178301,63207.0,63206.0,0.0796064]
[1724734485157,1.03705318,63207.0,63206.0,0.0796064]
[1724734485365,1.51366992,63207.0,63206.0,0.0796064]
[1724734485494,1.70839975,63207.0,63206.0,0.0796064]
[1724734485745,1.39197975,63207.0,63206.0,0.0796064]
[1724734486513,1.23178301,63207.0,63206.0,0.0796064]
[1724734486651,1.70840696,63207.0,63206.0,0.0796064]
[1724734486851,1.39198696,63207.0,63206.0,0.0796064]
[1724734487812,1.54820301,63207.0,63206.0,0.0796064]
[1724734488971,1.23178301,63207.0,63206.0,0.0796064]
[1724734489422,1.54820301,63207.0,63206.0,0.0796064]
[1724734490023,1.5487881,63207.0,63206.0,0.0796064]
[1724734491690,1.54898704,63207.0,63206.0,0.0796064]
[1724734494781,1.23348596,63207.0,63206.0,0.0796064]
[1724734495667,1.54990596,63207.0,63206.0,0.0796064]
[1724734497074,1.23348596,63207.0,63206.0,0.0796064]
[1724734497830,1.54990596,63207.0,63206.0,0.0796064]
[1724734498033,1.23348596,63207.0,63206.0,0.0796064]
[1724734498249,1.54990596,63207.0,63206.0,0.0796064]
[1724734499228,1.23348596,63207.0,63206.0,0.0796064]
[1724734499659,1.23348596,63207.0,63206.0,0.0019064]
[1724734500102,1.54990596,63207.0,63206.0,0.0019064]
[1724734501004,1.61070596,63207.0,63206.0,0.0019064]
[1724734502467,1.61170596,63207.0,63206.0,0.0019064]
[1724734503105,1.68145309,63207.0,63206.0,0.0019064]
[1724734503287,1.99787309,63207.0,63206.0,0.0019064]
[1724734505488,1.92167309,63207.0,63206.0,0.0019064]